[Event "12th Arad Open 2019"]
[Site "Arad"]
[Date "2019.07.31"]
[Round "9.25"]
[White "Coca, Cristi-Iulian"]
[Black "Gilea, Lucian"]
[Result "1-0"]
[ECO "C53"]
[WhiteElo "2043"]
[BlackElo "2287"]
[Annotator "NA"]
[PlyCount "77"]
[EventDate "2019.07.24"]
[EventType "swiss"]
[EventCountry "ROU"]
[SourceTitle "playchess.com"]
[Source "ChessBase"]
[SourceQuality "1"]
[TimeControl "40/5400+30:900+30"]

1. e4 {[%emt 0:00:18]} e5 {[%emt 0:04:09]} 2. Nf3 {[%emt 0:00:31]} Nc6 {[%emt 0:00:03]} 3. Bc4 {[%emt 0:05:07]} Bc5 {[%emt 0:01:08]} 4. c3 {[%emt 0:00:06]} Qe7 {[%emt 0:00:05]} 5. O-O {[%emt 0:01:30]} d6 {[%emt 0:00:07]} 6. a4 {[%emt 0:04:45]} a6 {[%emt 0:01:05]} 7. d4 {[%emt 0:04:17]} Bb6 {[%emt 0:00:16]} 8. h3 {[%emt 0:22:20]} Nf6 {[%emt 0:00:59]} 9. d5 {[%emt 0:04:39]} Nb8 {[%emt 0:00:06]} 10. a5 {[%emt 0:00:29]} Ba7 {[%emt 0:00:11]} 11. Re1 {[%emt 0:00:35]} Nbd7 {[%emt 0:04:29]} 12. b4 {[%emt 0:02:37]} Nf8 {[%emt 0:02:30]} 13. Bf1 {[%emt 0:03:04]} Ng6 {[%emt 0:00:26]} 14. Qc2 {[%emt 0:00:46]} Nh5 {[%emt 0:01:32]} 15. Kh2 {[%emt 0:04:46]} O-O {[%emt 0:07:23]} 16. Be3 {[%emt 0:07:11]} Bxe3 {[%emt 0:01:28]} 17. Rxe3 {[%emt 0:00:07]} f5 {[%emt 0:00:28]} 18. exf5 {[%emt 0:00:14]} Bxf5 {[%emt 0:00:07]} 19. Bd3 {[%emt 0:00:28]} Bxd3 {[%emt 0:00:17]} 20. Qxd3 {[%emt 0:00:37]} Ngf4 {[%emt 0:05:46]} 21. Qd1 {[%emt 0:00:38]} Qd7 {[%emt 0:01:22]} 22. Ng5 {[%emt 0:06:20]} Rf5 {[%emt 0:06:42]} 23. Ne4 {[%emt 0:01:21]} Rff8 {[%emt 0:04:20]} 24. c4 {[%emt 0:01:52]} Nf6 {[%emt 0:00:43]} 25. Nbc3 {[%emt 0:01:30]} h6 {[%emt 0:01:42]} 26. Ra2 {[%emt 0:01:30]} Rf7 {[%emt 0:00:22]} 27. Rb2 {[%emt 0:05:31]} Raf8 {[%emt 0:05:18]} 28. b5 {[%emt 0:04:10]} axb5 {[%emt 0:04:51]} 29. Rxb5 {[%emt 0:00:59]} Nxe4 {[%emt 0:08:05]} 30. Nxe4 {[%emt 0:00:18]} Ra8 {[%emt 0:00:13]} 31. Qe1 {[%emt 0:11:34]} c6 {[%emt 0:04:26]} 32. Rb6 {[%emt 0:01:20]} Qc7 {[%emt 0:01:38]} 33. Qb4 {[%emt 0:01:15]} Rd7 {[%emt 0:04:43]} 34. dxc6 {[%emt 0:01:04]} bxc6 {[%emt 0:00:13]} 35. a6 {[%emt 0:00:03]} Ra7 {[%emt 0:06:16]} 36. Rb3 {[%emt 0:00:41]} d5 {[%emt 0:02:57]} 37. Rb7 {[%emt 0:00:39]} c5 {[%emt 0:05:44]} 38. Nxc5 {[%emt 0:00:34]} Qd6 {[%emt 0:00:59]} 39. Nxd7 {[%emt 0:00:31]} 1-0

[Event "12th Arad Open 2019"]
[Site "Arad"]
[Date "2019.07.31"]
[Round "9.26"]
[White "Balan, Bogdan"]
[Black "Nastase, Robert-Paul"]
[Result "0-1"]
[ECO "B90"]
[WhiteElo "2036"]
[BlackElo "2283"]
[Annotator "NA"]
[PlyCount "94"]
[EventDate "2019.07.24"]
[EventType "swiss"]
[EventCountry "ROU"]
[SourceTitle "playchess.com"]
[Source "ChessBase"]
[SourceQuality "1"]
[TimeControl "40/5400+30:900+30"]

1. e4 {[%emt 0:12:07]} c5 {[%emt 0:00:00]} 2. Nf3 {[%emt 0:01:51]} d6 {[%emt 0:00:00]} 3. d4 {[%emt 0:00:12]} cxd4 {[%emt 0:00:00]} 4. Nxd4 {[%emt 0:00:14]} Nf6 {[%emt 0:00:00]} 5. Nc3 {[%emt 0:00:10]} a6 {[%emt 0:00:00]} 6. Be3 {[%emt 0:00:11]} e6 {[%emt 0:00:00]} 7. g4 {[%emt 0:00:14]} h5 {[%emt 0:00:00]} 8. gxh5 {[%emt 0:00:34]} Rxh5 {[%emt 0:02:20]} 9. Be2 {[%emt 0:02:07]} Rh8 {[%emt 0:00:04]} 10. f4 {[%emt 0:01:32]} Nbd7 {[%emt 0:00:39]} 11. Qd2 {[%emt 0:01:07]} Qc7 {[%emt 0:00:42]} 12. a4 {[%emt 0:01:11]} b6 {[%emt 0:00:24]} 13. Bf3 {[%emt 0:04:45]} Bb7 {[%emt 0:00:02]} 14. O-O-O {[%emt 0:04:01]} Rc8 {[%emt 0:07:18]} 15. Qg2 {[%emt 0:19:17]} Qb8 {[%emt 0:12:05]} 16. Rhe1 {[%emt 0:11:29]} Rxc3 {[%emt 0:02:35]} 17. bxc3 {[%emt 0:01:11]} e5 {[%emt 0:01:03]} 18. Nb3 {[%emt 0:07:27]} Qc7 {[%emt 0:00:59]} 19. Kb2 {[%emt 0:00:41]} Bc6 {[%emt 0:08:26]} 20. Ra1 {[%emt 0:00:47]} Qb7 {[%emt 0:01:05]} 21. Bd2 {[%emt 0:01:40]} Kd8 {[%emt 0:01:37]} 22. c4 {[%emt 0:01:15]} Kc8 {[%emt 0:01:29]} 23. f5 {[%emt 0:01:02]} a5 {[%emt 0:02:18]} 24. Qe2 {[%emt 0:03:28]} Ne8 {[%emt 0:02:20]} 25. c3 {[%emt 0:03:16]} f6 {[%emt 0:00:31]} 26. Kc2 {[%emt 0:01:38]} Nc5 {[%emt 0:01:04]} 27. Nxc5 {[%emt 0:00:15]} dxc5 {[%emt 0:00:03]} 28. Kb3 {[%emt 0:01:15]} Nd6 {[%emt 0:00:15]} 29. Qg2 {[%emt 0:02:13]} Be8 {[%emt 0:00:19]} 30. Re3 {[%emt 0:01:00]} Bf7 {[%emt 0:04:16]} 31. Be2 {[%emt 0:00:15]} Kd8 {[%emt 0:01:27]} 32. Rf1 {[%emt 0:02:49]} Qa6 {[%emt 0:02:42]} 33. Ra1 {[%emt 0:03:38]} Ke8 {[%emt 0:04:52]} 34. Bd3 {[%emt 0:01:52]} Nxc4 {[%emt 0:00:47]} 35. Bxc4 {[%emt 0:00:13]} Qxc4+ {[%emt 0:00:04]} 36. Kc2 {[%emt 0:00:17]} Qb3+ {[%emt 0:00:03]} 37. Kc1 {[%emt 0:00:17]} c4 {[%emt 0:00:03]} 38. Rg3 {[%emt 0:02:46]} Rh7 {[%emt 0:02:16]} 39. h3 {[%emt 0:06:20]} Bh5 {[%emt 0:00:29]} 40. Qg1 {[%emt 0:00:00]} Be2 {[%emt 0:00:00]} 41. Be1 {[%emt 0:05:07]} Bd3 {[%emt 0:06:27]} 42. Rg2 {[%emt 0:05:50]} Ba3+ {[%emt 0:00:38]} 43. Rxa3 {[%emt 0:00:02]} Qb1+ {[%emt 0:00:16]} 44. Kd2 {[%emt 0:00:14]} Qc2+ {[%emt 0:00:02]} 45. Ke3 {[%emt 0:00:15]} Rxh3+ {[%emt 0:00:05]} 46. Bg3 {[%emt 0:00:18]} Rxg3+ {[%emt 0:00:07]} 47. Rxg3 {[%emt 0:00:05]} Qe2# {[%emt 0:00:01] Kd4} 0-1

[Event "12th Arad Open 2019"]
[Site "Arad"]
[Date "2019.07.31"]
[Round "9.27"]
[White "Zaim, Marian"]
[Black "Pasti, Aron"]
[Result "0-1"]
[ECO "A06"]
[WhiteElo "2021"]
[BlackElo "2209"]
[Annotator "NA"]
[PlyCount "52"]
[EventDate "2019.07.24"]
[EventType "swiss"]
[EventCountry "ROU"]
[SourceTitle "playchess.com"]
[Source "ChessBase"]
[SourceQuality "1"]
[TimeControl "40/5400+30:900+30"]

1. Nf3 {[%emt 0:00:00]} d5 {[%emt 0:00:45]} 2. g3 {[%emt 0:01:00]} Nf6 {[%emt 0:00:07]} 3. Bg2 {[%emt 0:00:25]} g6 {[%emt 0:05:55]} 4. O-O {[%emt 0:01:28]} Bg7 {[%emt 0:02:28]} 5. c4 {[%emt 0:02:44]} c6 {[%emt 0:06:26]} 6. Qc2 {[%emt 0:08:28]} dxc4 {[%emt 0:05:23]} 7. Qxc4 {[%emt 0:02:40]} b5 {[%emt 0:00:38]} 8. Qc2 {[%emt 0:02:34]} Bb7 {[%emt 0:00:39]} 9. d4 {[%emt 0:05:37]} O-O {[%emt 0:01:30]} 10. Nbd2 {[%emt 0:12:57]} Nbd7 {[%emt 0:05:57]} 11. Nb3 {[%emt 0:07:46]} Rc8 {[%emt 0:05:43]} 12. Bd2 {[%emt 0:05:14]} Qc7 {[%emt 0:13:44]} 13. Ba5 {[%emt 0:05:03]} Qb8 {[%emt 0:01:43]} 14. Bb4 {[%emt 0:01:55]} Rfe8 {[%emt 0:07:48]} 15. Bh3 {[%emt 0:05:42]} e6 {[%emt 0:05:35]} 16. Nc5 {[%emt 0:01:55]} Nxc5 {[%emt 0:02:18]} 17. Bxc5 {[%emt 0:01:51]} Nd7 {[%emt 0:04:23]} 18. Ba3 {[%emt 0:06:32]} c5 {[%emt 0:02:05]} 19. Bxc5 {[%emt 0:01:38]} Bxf3 {[%emt 0:00:29]} 20. exf3 {[%emt 0:00:07]} Bxd4 {[%emt 0:00:47]} 21. b4 {[%emt 0:00:11]} Bxa1 {[%emt 0:01:09]} 22. Rxa1 {[%emt 0:00:01]} Nxc5 {[%emt 0:00:08]} 23. bxc5 {[%emt 0:00:01]} Rc6 {[%emt 0:01:12]} 24. Rc1 {[%emt 0:01:01]} Qc7 {[%emt 0:01:37]} 25. Bf1 {[%emt 0:01:23]} Rc8 {[%emt 0:01:06]} 26. Bxb5 {[%emt 0:00:12]} Rxc5 {[%emt 0:00:04]} 0-1

[Event "12th Arad Open 2019"]
[Site "Arad"]
[Date "2019.07.31"]
[Round "9.28"]
[White "Martian, Dragos-Daniel"]
[Black "Tinica, Gabriel"]
[Result "1-0"]
[ECO "B22"]
[WhiteElo "2201"]
[BlackElo "1712"]
[Annotator "NA"]
[PlyCount "125"]
[EventDate "2019.07.24"]
[EventType "swiss"]
[EventCountry "ROU"]
[SourceTitle "playchess.com"]
[Source "ChessBase"]
[SourceQuality "1"]
[TimeControl "40/5400+30:900+30"]

1. e4 {[%emt 0:17:40]} c5 {[%emt 0:00:00]} 2. c3 {[%emt 0:00:15]} d5 {[%emt 0:00:00]} 3. exd5 {[%emt 0:00:01]} Qxd5 {[%emt 0:00:03]} 4. d4 {[%emt 0:00:03]} Nc6 {[%emt 0:00:08]} 5. Nf3 {[%emt 0:00:04]} Bg4 {[%emt 0:00:28]} 6. Be2 {[%emt 0:00:10]} Nf6 {[%emt 0:00:13]} 7. c4 {[%emt 0:00:59]} Qd6 {[%emt 0:01:43]} 8. d5 {[%emt 0:02:01]} Bxf3 {[%emt 0:05:39]} 9. Bxf3 {[%emt 0:00:39]} Nd4 {[%emt 0:00:05]} 10. Nc3 {[%emt 0:05:53]} e5 {[%emt 0:06:07]} 11. dxe6 {[%emt 0:05:27]} Qxe6+ {[%emt 0:00:34]} 12. Be3 {[%emt 0:01:48]} Bd6 {[%emt 0:14:44]} 13. Qa4+ {[%emt 0:07:41]} b5 {[%emt 0:16:43]} 14. Nxb5 {[%emt 0:02:17]} Nxf3+ {[%emt 0:00:08]} 15. gxf3 {[%emt 0:00:05]} O-O {[%emt 0:00:08]} 16. O-O-O {[%emt 0:06:19]} Be5 {[%emt 0:01:53]} 17. Rhe1 {[%emt 0:05:39]} a6 {[%emt 0:01:37]} 18. Na3 {[%emt 0:00:13]} Rfb8 {[%emt 0:01:04]} 19. Rd2 {[%emt 0:02:22]} Qb6 {[%emt 0:06:27]} 20. Ree2 {[%emt 0:09:06]} Nh5 {[%emt 0:03:04]} 21. Kb1 {[%emt 0:06:18]} Qg6+ {[%emt 0:00:32]} 22. Ka1 {[%emt 0:01:34]} Qf6 {[%emt 0:19:29]} 23. Qd7 {[%emt 0:07:28]} Rd8 {[%emt 0:06:17]} 24. Qb7 {[%emt 0:08:47]} Rab8 {[%emt 0:00:58]} 25. Rxd8+ {[%emt 0:01:26]} Qxd8 {[%emt 0:00:16]} 26. Rd2 {[%emt 0:01:20]} Qf6 {[%emt 0:01:07]} 27. Qa7 {[%emt 0:04:30]} Bxb2+ {[%emt 0:00:05]} 28. Kb1 {[%emt 0:00:03]} Qe5 {[%emt 0:01:39]} 29. Nb5 {[%emt 0:02:05]} Ba1 {[%emt 0:06:17]} 30. Qxa6 {[%emt 0:00:29]} Bc3 {[%emt 0:01:42]} 31. Rd5 {[%emt 0:00:42]} Qxh2 {[%emt 0:01:16]} 32. Qb6 {[%emt 0:00:41]} Bf6 {[%emt 0:01:06]} 33. Qd6 {[%emt 0:00:53]} Qg1+ {[%emt 0:01:27]} 34. Rd1 {[%emt 0:00:51]} Qg6+ {[%emt 0:00:19]} 35. Qd3 {[%emt 0:00:36]} Qg2 {[%emt 0:01:14]} 36. Qf5 {[%emt 0:00:47]} g6 {[%emt 0:01:52]} 37. Qe4 {[%emt 0:00:08]} Qh3 {[%emt 0:00:36]} 38. Qg4 {[%emt 0:00:35]} Qxg4 {[%emt 0:00:17]} 39. fxg4 {[%emt 0:00:03]} Ng7 {[%emt 0:00:12]} 40. Rd6 {[%emt 0:00:00]} Ne6 {[%emt 0:00:00]} 41. Kc2 {[%emt 0:03:57]} Kf8 {[%emt 0:04:45]} 42. Rd5 {[%emt 0:01:18]} Be7 {[%emt 0:02:49]} 43. a4 {[%emt 0:01:41]} Nd4+ {[%emt 0:01:09]} 44. Nxd4 {[%emt 0:04:08]} cxd4 {[%emt 0:00:09]} 45. Bh6+ {[%emt 0:01:01]} Ke8 {[%emt 0:00:15]} 46. a5 {[%emt 0:00:29]} Rb4 {[%emt 0:00:41]} 47. Kd3 {[%emt 0:00:22]} Ra4 {[%emt 0:01:26]} 48. Bd2 {[%emt 0:01:51]} Ra3+ {[%emt 0:00:55]} 49. Kxd4 {[%emt 0:01:22]} Ra2 {[%emt 0:00:49]} 50. Kd3 {[%emt 0:00:49]} Ra3+ {[%emt 0:00:09]} 51. Kc2 {[%emt 0:00:45]} Ra2+ {[%emt 0:00:38]} 52. Kb3 {[%emt 0:00:09]} Ra3+ {[%emt 0:00:04]} 53. Kb2 {[%emt 0:00:45]} Ra4 {[%emt 0:00:04]} 54. c5 {[%emt 0:01:42]} Bf6+ {[%emt 0:01:54]} 55. Kb3 {[%emt 0:00:12]} Rxg4 {[%emt 0:01:44]} 56. c6 {[%emt 0:00:35]} Bd8 {[%emt 0:03:42]} 57. a6 {[%emt 0:00:11]} Rg1 {[%emt 0:00:45]} 58. Rxd8+ {[%emt 0:00:25]} Kxd8 {[%emt 0:00:08]} 59. Ba5+ {[%emt 0:00:04]} Kc8 {[%emt 0:00:40]} 60. a7 {[%emt 0:00:05]} Rb1+ {[%emt 0:00:06]} 61. Kc4 {[%emt 0:01:25]} Rc1+ {[%emt 0:00:55]} 62. Kd3 {[%emt 0:00:41]} h6 63. Ke4 1-0

[Event "12th Arad Open 2019"]
[Site "Arad"]
[Date "2019.07.31"]
[Round "9.29"]
[White "Albu, George"]
[Black "Daianu, Cristian-Clement"]
[Result "1/2-1/2"]
[ECO "D85"]
[WhiteElo "2014"]
[BlackElo "2199"]
[Annotator "NA"]
[PlyCount "167"]
[EventDate "2019.07.24"]
[EventType "swiss"]
[EventCountry "ROU"]
[SourceTitle "playchess.com"]
[Source "ChessBase"]
[SourceQuality "1"]
[TimeControl "40/5400+30:900+30"]

1. d4 {[%emt 0:13:29]} Nf6 {[%emt 0:00:00]} 2. c4 {[%emt 0:00:06]} g6 {[%emt 0:00:00]} 3. Nc3 {[%emt 0:00:05]} d5 {[%emt 0:00:00]} 4. cxd5 {[%emt 0:00:06]} Nxd5 {[%emt 0:00:01]} 5. e4 {[%emt 0:00:08]} Nxc3 {[%emt 0:00:03]} 6. bxc3 {[%emt 0:00:05]} Bg7 {[%emt 0:00:06]} 7. Be3 {[%emt 0:00:05]} c5 {[%emt 0:00:23]} 8. Rc1 {[%emt 0:00:12]} O-O {[%emt 0:02:11]} 9. Qd2 {[%emt 0:00:28]} cxd4 {[%emt 0:02:53]} 10. cxd4 {[%emt 0:00:10]} b6 {[%emt 0:00:02]} 11. Bc4 {[%emt 0:16:58]} Bb7 {[%emt 0:02:28]} 12. f3 {[%emt 0:00:09]} e5 {[%emt 0:32:29]} 13. d5 {[%emt 0:03:36]} Qd6 {[%emt 0:07:34]} 14. Ne2 {[%emt 0:02:28]} Nd7 {[%emt 0:00:39]} 15. O-O {[%emt 0:08:39]} Rac8 {[%emt 0:04:22]} 16. Rc2 {[%emt 0:07:19]} f5 {[%emt 0:11:28]} 17. Rfc1 {[%emt 0:18:52]} Nf6 {[%emt 0:10:12]} 18. Bd3 {[%emt 0:00:13]} fxe4 {[%emt 0:02:12]} 19. fxe4 {[%emt 0:00:10]} Rxc2 {[%emt 0:02:02]} 20. Rxc2 {[%emt 0:00:23]} Ng4 {[%emt 0:04:02]} 21. h3 {[%emt 0:00:19]} Nxe3 {[%emt 0:00:08]} 22. Qxe3 {[%emt 0:00:04]} Rc8 {[%emt 0:09:28]} 23. Rxc8+ {[%emt 0:04:30]} Bxc8 {[%emt 0:00:11]} 24. Qc1 {[%emt 0:00:21]} Bd7 {[%emt 0:00:19]} 25. Kf1 {[%emt 0:04:19]} Bf8 {[%emt 0:00:48]} 26. Ng1 {[%emt 0:01:42]} Qf6+ {[%emt 0:04:02]} 27. Ke2 {[%emt 0:01:31]} Bc5 {[%emt 0:00:24]} 28. Nf3 {[%emt 0:00:30]} Kg7 {[%emt 0:02:53]} 29. Qc3 {[%emt 0:03:35]} Bd6 {[%emt 0:00:09]} 30. Ba6 {[%emt 0:02:52]} Qf4 {[%emt 0:00:49]} 31. Qe3 {[%emt 0:00:10]} Qg3 {[%emt 0:01:16]} 32. Qg5 {[%emt 0:00:45]} Qxg5 {[%emt 0:01:31]} 33. Nxg5 {[%emt 0:00:14]} h6 {[%emt 0:00:06]} 34. Nf3 {[%emt 0:00:05]} Kf6 {[%emt 0:00:04]} 35. Kd3 {[%emt 0:01:48]} g5 {[%emt 0:00:08]} 36. Nd2 {[%emt 0:01:04]} h5 {[%emt 0:01:22]} 37. Nc4 {[%emt 0:00:50]} Bc5 {[%emt 0:00:06]} 38. Nd2 {[%emt 0:03:06]} g4 {[%emt 0:00:21]} 39. hxg4 {[%emt 0:00:08]} hxg4 {[%emt 0:00:06]} 40. Nb3 {[%emt 0:00:00]} Bg1 {[%emt 0:00:00]} 41. Nd2 {[%emt 0:03:35]} Bc5 {[%emt 0:03:57]} 42. Ke2 {[%emt 0:00:38]} Kg5 {[%emt 0:01:40]} 43. g3 {[%emt 0:00:34]} Kf6 {[%emt 0:00:25]} 44. Nc4 {[%emt 0:00:36]} b5 {[%emt 0:03:26]} 45. Na5 {[%emt 0:03:44]} Ke7 {[%emt 0:00:41]} 46. Nc6+ {[%emt 0:01:38]} Kd6 {[%emt 0:00:32]} 47. Bxb5 {[%emt 0:00:10]} Bxc6 {[%emt 0:00:26]} 48. Bxc6 {[%emt 0:00:22]} Ke7 {[%emt 0:00:31]} 49. Bb7 {[%emt 0:01:15]} Kd8 {[%emt 0:00:08]} 50. Ke1 {[%emt 0:00:20]} a5 {[%emt 0:01:53]} 51. Ba6 {[%emt 0:00:06]} a4 {[%emt 0:00:18]} 52. Be2 {[%emt 0:00:09]} Kc7 {[%emt 0:00:16]} 53. Bxg4 {[%emt 0:00:06]} Kb6 {[%emt 0:00:07]} 54. Bd1 {[%emt 0:03:06]} a3 {[%emt 0:05:12]} 55. Ke2 {[%emt 0:00:10]} Bb4 {[%emt 0:01:33]} 56. Kf3 {[%emt 0:00:21]} Be1 {[%emt 0:00:19]} 57. Kg4 {[%emt 0:00:20]} Kc7 {[%emt 0:00:24]} 58. Kh3 {[%emt 0:00:06]} Bd2 {[%emt 0:00:07]} 59. Kg4 {[%emt 0:01:09]} Be1 {[%emt 0:00:09]} 60. Kf3 {[%emt 0:00:09]} Kd6 {[%emt 0:00:32]} 61. Kg2 {[%emt 0:00:03]} Ke7 {[%emt 0:01:46]} 62. Bg4 {[%emt 0:00:12]} Kd6 {[%emt 0:00:11]} 63. Bf5 {[%emt 0:00:04]} Kc5 {[%emt 0:00:27]} 64. g4 {[%emt 0:00:26]} Bh4 {[%emt 0:00:19]} 65. Kf3 {[%emt 0:00:06]} Be7 {[%emt 0:00:13]} 66. Ke3 {[%emt 0:00:11]} Bg5+ {[%emt 0:02:49]} 67. Kd3 {[%emt 0:00:09]} Bf4 {[%emt 0:00:12]} 68. Kc3 {[%emt 0:00:04]} Bg5 {[%emt 0:00:08]} 69. Kb3 {[%emt 0:00:05]} Bc1 {[%emt 0:00:04]} 70. g5 {[%emt 0:00:05]} Bxg5 {[%emt 0:00:04]} 71. Kxa3 {[%emt 0:00:04]} Bd2 {[%emt 0:00:11]} 72. Kb3 {[%emt 0:00:10]} Be1 {[%emt 0:00:14]} 73. Kc2 {[%emt 0:00:05]} Ba5 {[%emt 0:00:29]} 74. Kd3 {[%emt 0:00:06]} Be1 {[%emt 0:00:11]} 75. Ke3 {[%emt 0:00:03]} Ba5 {[%emt 0:00:26]} 76. Kf3 {[%emt 0:00:04]} Bd8 {[%emt 0:00:29]} 77. a4 {[%emt 0:00:06]} Ba5 {[%emt 0:00:12]} 78. Kg4 {[%emt 0:00:04]} Kd6 {[%emt 0:00:10]} 79. Kg5 {[%emt 0:00:04]} Bb6 {[%emt 0:00:11]} 80. Be6 {[%emt 0:00:08]} Ba5 {[%emt 0:00:22]} 81. Kf5 {[%emt 0:00:05]} Bd8 {[%emt 0:00:09]} 82. Kg4 {[%emt 0:00:21]} Ba5 {[%emt 0:00:10]} 83. Kf5 {[%emt 0:00:04]} Bd8 {[%emt 0:00:03]} 84. Kg4 {[%emt 0:00:04]} 1/2-1/2

[Event "12th Arad Open 2019"]
[Site "Arad"]
[Date "2019.07.31"]
[Round "9.31"]
[White "Veress, Armand"]
[Black "Mozes, Ervin"]
[Result "1-0"]
[ECO "B03"]
[WhiteElo "1827"]
[BlackElo "2121"]
[Annotator "NA"]
[PlyCount "57"]
[EventDate "2019.07.24"]
[EventType "swiss"]
[EventCountry "ROU"]
[SourceTitle "playchess.com"]
[Source "ChessBase"]
[SourceQuality "1"]
[TimeControl "40/5400+30:900+30"]

1. e4 {[%emt 0:00:00]} Nf6 {[%emt 0:00:00]} 2. e5 {[%emt 0:00:00]} Nd5 {[%emt 0:00:00]} 3. d4 {[%emt 0:00:20]} c6 {[%emt 0:00:03]} 4. Nf3 {[%emt 0:01:00]} d6 {[%emt 0:01:01]} 5. Be2 {[%emt 0:03:16]} Nd7 {[%emt 0:10:09]} 6. c4 {[%emt 0:02:19]} Nc7 {[%emt 0:01:17]} 7. exd6 {[%emt 0:00:22]} exd6 {[%emt 0:00:04]} 8. O-O {[%emt 0:01:31]} d5 {[%emt 0:04:49]} 9. Qb3 {[%emt 0:05:45]} Be7 {[%emt 0:01:50]} 10. Nc3 {[%emt 0:03:36]} dxc4 {[%emt 0:09:36]} 11. Bxc4 {[%emt 0:00:13]} O-O {[%emt 0:00:02]} 12. Ne5 {[%emt 0:00:52]} Nxe5 {[%emt 0:00:06]} 13. dxe5 {[%emt 0:00:07]} b5 {[%emt 0:08:35]} 14. Be2 {[%emt 0:01:44]} Qd4 {[%emt 0:00:11]} 15. Bf3 {[%emt 0:02:49]} b4 {[%emt 0:04:46]} 16. Ne2 {[%emt 0:03:16]} Qb6 {[%emt 0:20:23]} 17. Be3 {[%emt 0:01:43]} Bc5 {[%emt 0:03:16]} 18. Bxc5 {[%emt 0:02:44]} Qxc5 {[%emt 0:00:01]} 19. Rac1 {[%emt 0:00:29]} Qxe5 {[%emt 0:00:14]} 20. Qxb4 {[%emt 0:01:01]} Ba6 {[%emt 0:06:45]} 21. Rfe1 {[%emt 0:06:08]} Rab8 {[%emt 0:02:10]} 22. Qd4 {[%emt 0:00:31]} Qa5 {[%emt 0:05:42]} 23. Nf4 {[%emt 0:20:41]} Qxa2 {[%emt 0:12:21]} 24. Rxc6 {[%emt 0:02:19]} Nb5 {[%emt 0:06:23]} 25. Qe5 {[%emt 0:00:38]} Kh8 {[%emt 0:02:10]} 26. Bd5 {[%emt 0:01:16]} Qa5 {[%emt 0:00:20]} 27. Nh5 {[%emt 0:01:00]} f6 28. Qe7 Rg8 29. Bxg8 1-0

[Event "12th Arad Open 2019"]
[Site "Arad"]
[Date "2019.07.31"]
[Round "9.32"]
[White "Pislariu, Stefanel-Vasilica"]
[Black "Tunaru, Alexandru A."]
[Result "1/2-1/2"]
[ECO "A52"]
[WhiteElo "1934"]
[BlackElo "2111"]
[Annotator "NA"]
[PlyCount "91"]
[EventDate "2019.07.24"]
[EventType "swiss"]
[EventCountry "ROU"]
[SourceTitle "playchess.com"]
[Source "ChessBase"]
[SourceQuality "1"]
[TimeControl "40/5400+30:900+30"]

1. d4 {[%emt 0:00:00]} Nf6 {[%emt 0:00:00]} 2. c4 {[%emt 0:00:00]} e5 {[%emt 0:00:08]} 3. dxe5 {[%emt 0:00:00]} Ng4 {[%emt 0:00:11]} 4. Nf3 {[%emt 0:00:10]} Bc5 {[%emt 0:00:11]} 5. e3 {[%emt 0:00:07]} Nc6 {[%emt 0:00:08]} 6. Be2 {[%emt 0:02:09]} O-O {[%emt 0:00:15]} 7. Nc3 {[%emt 0:00:59]} Ngxe5 {[%emt 0:00:15]} 8. Nxe5 {[%emt 0:01:18]} Nxe5 {[%emt 0:00:10]} 9. O-O {[%emt 0:00:22]} Re8 {[%emt 0:00:09]} 10. Ne4 {[%emt 0:06:12]} Bf8 {[%emt 0:02:28]} 11. Ng3 {[%emt 0:00:49]} Bc5 {[%emt 0:09:12]} 12. Ne4 {[%emt 0:04:25]} Bf8 {[%emt 0:02:04]} 13. Ng3 {[%emt 0:01:09]} a5 {[%emt 0:00:10]} 14. f4 {[%emt 0:15:00]} Ng6 {[%emt 0:00:39]} 15. e4 {[%emt 0:09:10]} Bc5+ {[%emt 0:01:52]} 16. Kh1 {[%emt 0:00:06]} d6 {[%emt 0:08:55]} 17. f5 {[%emt 0:05:55]} Nf8 {[%emt 0:02:30]} 18. Bh5 {[%emt 0:05:55]} Qf6 {[%emt 0:05:12]} 19. Qg4 {[%emt 0:07:16]} Nd7 {[%emt 0:06:20]} 20. Bg5 {[%emt 0:05:34]} Qxb2 {[%emt 0:05:36]} 21. Bxf7+ {[%emt 0:04:26]} Kxf7 {[%emt 0:03:10]} 22. Qh5+ {[%emt 0:00:46]} Kf8 {[%emt 0:00:42]} 23. f6 {[%emt 0:01:10]} Nxf6 {[%emt 0:01:18]} 24. Bxf6 {[%emt 0:03:16]} gxf6 {[%emt 0:01:30]} 25. Qh6+ {[%emt 0:00:13]} Ke7 {[%emt 0:01:34]} 26. Nh5 {[%emt 0:02:30]} Bd4 {[%emt 0:02:01]} 27. Rab1 {[%emt 0:00:52]} Qe2 {[%emt 0:04:41]} 28. Nxf6 {[%emt 0:00:54]} Bxf6 {[%emt 0:00:34]} 29. Qxf6+ {[%emt 0:00:23]} Kd7 {[%emt 0:00:11]} 30. Qf5+ {[%emt 0:00:45]} Re6 {[%emt 0:05:14]} 31. Qxh7+ {[%emt 0:00:35]} Kc6 {[%emt 0:12:34]} 32. Rf7 {[%emt 0:04:45]} Bd7 {[%emt 0:03:34]} 33. Rxd7 {[%emt 0:00:53]} Rc8 {[%emt 0:00:07]} 34. Re7 {[%emt 0:02:22]} Qxa2 {[%emt 0:04:51]} 35. Rc1 {[%emt 0:02:28]} Rxe7 {[%emt 0:04:56]} 36. Qxe7 {[%emt 0:00:08]} Rg8 {[%emt 0:00:12]} 37. g3 {[%emt 0:01:38]} Qf2 {[%emt 0:06:28]} 38. Rg1 {[%emt 0:02:27]} b6 {[%emt 0:05:45]} 39. Qe6 {[%emt 0:01:01]} Qf3+ {[%emt 0:02:10]} 40. Rg2 {[%emt 0:00:00]} Qf1+ {[%emt 0:00:00]} 41. Rg1 {[%emt 0:00:18]} Qf3+ {[%emt 0:02:32]} 42. Rg2 {[%emt 0:00:13]} Rg5 {[%emt 0:04:38]} 43. Qh6 {[%emt 0:08:54]} Qf1+ {[%emt 0:08:35]} 44. Rg1 {[%emt 0:00:10]} Qf3+ 45. Rg2 Rc5 46. h4 1/2-1/2